[Event "FIDE Women World Rapid 2024"]
[Site "New York"]
[Date "2024.12.27"]
[Round "7.11"]
[White "Nilssen, Ellen Fredericia"]
[Black "Khotenashvili, Bella"]
[Result "1/2-1/2"]
[ECO "A70"]
[WhiteElo "2181"]
[BlackElo "2420"]
[Annotator "ChessBase"]
[PlyCount "99"]
[EventDate "2024.12.14"]
[EventType "swiss"]
[EventCountry "USA"]
[SourceTitle "playchess.com"]
[Source "ChessBase"]
[SourceQuality "1"]
[TimeControl "900+10"]

1. d4 {[%emt 0:00:02]} Nf6 {[%emt 0:00:03]} 2. c4 {[%emt 0:00:02]} c5 {[%emt 0:00:03]} 3. d5 {[%emt 0:00:05]} e6 {[%emt 0:00:02]} 4. Nc3 {[%emt 0:00:08]} exd5 {[%emt 0:00:09]} 5. cxd5 {[%emt 0:00:03]} d6 {[%emt 0:00:01]} 6. e4 {[%emt 0:00:08]} g6 {[%emt 0:00:03]} 7. Bd3 {[%emt 0:00:09]} Bg7 {[%emt 0:00:08]} 8. h3 {[%emt 0:00:04]} O-O {[%emt 0:00:04]} 9. Nf3 {[%emt 0:00:03]} a6 {[%emt 0:01:30]} 10. a4 {[%emt 0:00:08]} Re8 {[%emt 0:00:01]} 11. O-O {[%emt 0:00:04]} Nbd7 {[%emt 0:00:23]} 12. Bf4 {[%emt 0:02:00]} Nh5 {[%emt 0:01:33]} 13. Bg5 {[%emt 0:03:47]} Bf6 {[%emt 0:02:04]} 14. Bh6 {[%emt 0:00:02]} Ne5 {[%emt 0:00:13]} 15. Be2 {[%emt 0:00:15]} Nxf3+ {[%emt 0:00:06]} 16. Bxf3 {[%emt 0:00:02]} Ng7 {[%emt 0:00:01]} 17. Qd2 {[%emt 0:00:31]} Bd7 {[%emt 0:00:09]} 18. a5 {[%emt 0:00:39]} b5 {[%emt 0:00:22]} 19. axb6 {[%emt 0:02:20]} Qxb6 {[%emt 0:00:03]} 20. Rfb1 {[%emt 0:00:20]} Reb8 {[%emt 0:00:31]} 21. Be3 {[%emt 0:00:42]} Qb4 {[%emt 0:01:42]} 22. Bf4 {[%emt 0:01:31]} Ne8 {[%emt 0:00:20]} 23. Qc2 {[%emt 0:02:43]} a5 {[%emt 0:01:57]} 24. Bg4 {[%emt 0:00:04]} Bxg4 {[%emt 0:01:30]} 25. hxg4 {[%emt 0:00:01]} Qc4 {[%emt 0:00:02]} 26. Ra4 {[%emt 0:00:16]} Rb4 {[%emt 0:00:04]} 27. Rba1 {[%emt 0:00:41]} Rab8 {[%emt 0:00:25]} 28. Bc1 {[%emt 0:00:01]} Bd8 {[%emt 0:00:22]} 29. Qe2 {[%emt 0:00:31]} Qxe2 {[%emt 0:00:20]} 30. Nxe2 {[%emt 0:00:01]} Nf6 {[%emt 0:00:15]} 31. f3 {[%emt 0:00:21]} Nd7 {[%emt 0:00:13]} 32. Nf4 {[%emt 0:00:54]} Ne5 {[%emt 0:00:16]} 33. Bd2 {[%emt 0:00:02]} Rxa4 {[%emt 0:01:51]} 34. Rxa4 {[%emt 0:00:01]} g5 {[%emt 0:00:06]} 35. Nh5 {[%emt 0:00:19]} Nd3 {[%emt 0:00:43]} 36. b3 {[%emt 0:01:00]} Rb5 {[%emt 0:01:53]} 37. Ng3 {[%emt 0:00:09]} Rxb3 {[%emt 0:00:17]} 38. Bxa5 {[%emt 0:00:02]} Rb1+ {[%emt 0:00:02]} 39. Kh2 {[%emt 0:00:03]} Bf6 {[%emt 0:00:02]} 40. Nf5 {[%emt 0:00:51]} Be5+ {[%emt 0:00:12]} 41. g3 {[%emt 0:00:01]} Rb2+ {[%emt 0:00:07]} 42. Kg1 {[%emt 0:00:25]} Nc1 {[%emt 0:00:47]} 43. Bd2 {[%emt 0:00:16]} Ne2+ {[%emt 0:00:17]} 44. Kf2 {[%emt 0:00:10]} h6 {[%emt 0:00:05]} 45. Kxe2 {[%emt 0:00:03]} Bc3 {[%emt 0:00:01]} 46. Nxd6 {[%emt 0:00:30]} Rxd2+ {[%emt 0:00:06]} 47. Kf1 {[%emt 0:00:10]} Rd1+ {[%emt 0:00:13]} 48. Ke2 {[%emt 0:00:03]} Rd2+ {[%emt 0:00:04]} 49. Kf1 {[%emt 0:00:01]} Rd1+ {[%emt 0:00:10]} 50. Ke2 {[%emt 0:00:21]} 1/2-1/2

[Event "FIDE Women World Rapid 2024"]
[Site "New York"]
[Date "2024.12.27"]
[Round "7.12"]
[White "Kamalidenova, Meruert"]
[Black "Tsolakidou, Stavroula"]
[Result "0-1"]
[ECO "B22"]
[WhiteElo "2378"]
[BlackElo "2451"]
[Annotator "ChessBase"]
[PlyCount "66"]
[EventDate "2024.12.14"]
[EventType "swiss"]
[EventCountry "USA"]
[SourceTitle "playchess.com"]
[Source "ChessBase"]
[SourceQuality "1"]
[TimeControl "900+10"]

1. e4 {[%emt 0:00:03]} c5 {[%emt 0:00:05]} 2. c3 {[%emt 0:00:11]} d5 {[%emt 0:00:15]} 3. exd5 {[%emt 0:00:03]} Qxd5 {[%emt 0:00:03]} 4. d4 {[%emt 0:00:03]} Nc6 {[%emt 0:00:08]} 5. Nf3 {[%emt 0:00:13]} Bf5 {[%emt 0:00:04]} 6. Be3 {[%emt 0:01:05]} cxd4 {[%emt 0:00:20]} 7. Nxd4 {[%emt 0:01:35]} Nf6 {[%emt 0:00:12]} 8. Be2 {[%emt 0:01:05]} Nxd4 {[%emt 0:02:36]} 9. cxd4 {[%emt 0:01:10]} Qxg2 {[%emt 0:05:29]} 10. Bf3 {[%emt 0:00:15]} Qh3 {[%emt 0:00:12]} 11. Bxb7 {[%emt 0:01:00]} Rd8 {[%emt 0:00:09]} 12. Nc3 {[%emt 0:00:42]} Bd7 {[%emt 0:00:56]} 13. Qd3 {[%emt 0:01:52]} g6 {[%emt 0:01:15]} 14. Nb5 {[%emt 0:01:11]} Bg7 {[%emt 0:00:15]} 15. Nc7+ {[%emt 0:00:18]} Kf8 {[%emt 0:00:02]} 16. a4 {[%emt 0:02:15]} Rb8 {[%emt 0:00:26]} 17. Qa6 {[%emt 0:00:09]} Bh6 {[%emt 0:00:32]} 18. Ra3 {[%emt 0:00:17]} Bxe3 {[%emt 0:01:09]} 19. Rxe3 {[%emt 0:00:05]} Qf5 {[%emt 0:00:09]} 20. O-O {[%emt 0:01:17]} Kg7 {[%emt 0:01:38]} 21. Qxa7 {[%emt 0:01:06]} h5 {[%emt 0:02:00]} 22. Bg2 {[%emt 0:02:26]} Rxb2 {[%emt 0:00:18]} 23. Qc5 {[%emt 0:00:24]} Qxc5 {[%emt 0:00:25]} 24. dxc5 {[%emt 0:00:02]} Rc8 {[%emt 0:00:02]} 25. Na6 {[%emt 0:00:19]} Bxa4 {[%emt 0:00:04]} 26. Rxe7 {[%emt 0:00:02]} Bb5 {[%emt 0:00:04]} 27. Rb7 {[%emt 0:00:13]} Bxf1 {[%emt 0:00:30]} 28. Rxb2 {[%emt 0:00:02]} Bxa6 {[%emt 0:00:03]} 29. c6 {[%emt 0:00:01]} Bc4 {[%emt 0:00:07]} 30. Rd2 {[%emt 0:00:12]} Kf8 {[%emt 0:00:13]} 31. Rd4 {[%emt 0:00:10]} Bb5 {[%emt 0:00:08]} 32. h4 {[%emt 0:00:24]} Ke7 {[%emt 0:00:09]} 33. Rd2 {[%emt 0:00:13]} Bxc6 {[%emt 0:00:07]} 0-1

[Event "FIDE Women World Rapid 2024"]
[Site "New York"]
[Date "2024.12.27"]
[Round "7.12"]
[White "Cervantes Landeiro, Thalia"]
[Black "Khademalsharieh, Sarasadat"]
[Result "0-1"]
[ECO "D38"]
[WhiteElo "2307"]
[BlackElo "2458"]
[Annotator "ChessBase"]
[PlyCount "139"]
[EventDate "2024.12.14"]
[EventType "swiss"]
[EventCountry "USA"]
[SourceTitle "playchess.com"]
[Source "ChessBase"]
[SourceQuality "1"]
[TimeControl "900+10"]

1. d4 {[%emt 0:00:01]} d5 {[%emt 0:00:02]} 2. c4 {[%emt 0:00:02]} e6 {[%emt 0:00:03]} 3. Nc3 {[%emt 0:00:03]} Bb4 {[%emt 0:00:03]} 4. Nf3 {[%emt 0:00:15]} Nf6 {[%emt 0:00:07]} 5. Bg5 {[%emt 0:00:33]} h6 {[%emt 0:00:20]} 6. Bxf6 {[%emt 0:00:03]} Qxf6 {[%emt 0:00:03]} 7. Qa4+ {[%emt 0:00:03]} Nc6 {[%emt 0:00:02]} 8. e3 {[%emt 0:00:04]} O-O {[%emt 0:00:22]} 9. Be2 {[%emt 0:00:23]} dxc4 {[%emt 0:00:35]} 10. O-O {[%emt 0:02:05]} Bd7 {[%emt 0:01:14]} 11. Bxc4 {[%emt 0:00:17]} Qg6 {[%emt 0:02:55]} 12. Qd1 {[%emt 0:01:02]} Rad8 {[%emt 0:01:08]} 13. Bd3 {[%emt 0:00:18]} Qh5 {[%emt 0:00:02]} 14. Ne4 {[%emt 0:00:25]} f5 {[%emt 0:00:47]} 15. Ng3 {[%emt 0:00:16]} Qf7 {[%emt 0:00:24]} 16. Qb3 {[%emt 0:01:15]} Bd6 {[%emt 0:00:34]} 17. Nxf5 {[%emt 0:00:41]} Bc8 {[%emt 0:02:36]} 18. Nxd6 {[%emt 0:01:19]} cxd6 {[%emt 0:00:06]} 19. Rac1 {[%emt 0:00:23]} Qh5 {[%emt 0:00:17]} 20. Nd2 {[%emt 0:01:18]} Ne7 {[%emt 0:00:21]} 21. Be4 {[%emt 0:02:19]} d5 {[%emt 0:00:29]} 22. Bb1 {[%emt 0:00:11]} e5 {[%emt 0:00:08]} 23. dxe5 {[%emt 0:00:21]} Qxe5 {[%emt 0:00:04]} 24. Qc2 {[%emt 0:00:26]} Bf5 {[%emt 0:00:44]} 25. Qc7 {[%emt 0:00:02]} Qe6 {[%emt 0:00:43]} 26. Bxf5 {[%emt 0:00:27]} Nxf5 {[%emt 0:00:01]} 27. Nf3 {[%emt 0:00:35]} Rd7 {[%emt 0:00:01]} 28. Qe5 {[%emt 0:00:12]} Qf7 {[%emt 0:00:47]} 29. Nd4 {[%emt 0:00:11]} Nh4 {[%emt 0:00:39]} 30. Qg3 {[%emt 0:00:09]} Qe7 {[%emt 0:00:07]} 31. Qg4 {[%emt 0:00:24]} Rd6 {[%emt 0:00:31]} 32. g3 {[%emt 0:00:56]} Ng6 {[%emt 0:00:03]} 33. Rc2 {[%emt 0:00:49]} Ne5 {[%emt 0:00:13]} 34. Qe2 {[%emt 0:00:07]} Rdf6 {[%emt 0:00:13]} 35. b3 {[%emt 0:00:36]} Qd7 {[%emt 0:00:26]} 36. Qh5 {[%emt 0:00:39]} Ng4 {[%emt 0:01:27]} 37. Qh3 {[%emt 0:00:57]} R8f7 {[%emt 0:00:11]} 38. Re2 {[%emt 0:00:20]} h5 {[%emt 0:00:21]} 39. f3 {[%emt 0:00:11]} Qe8 {[%emt 0:00:51]} 40. Qxh5 {[%emt 0:00:29]} Ne5 {[%emt 0:00:11]} 41. f4 {[%emt 0:00:02]} g6 {[%emt 0:01:12]} 42. Qh3 {[%emt 0:00:04]} Nc6 {[%emt 0:00:05]} 43. Qg2 {[%emt 0:00:23]} Nxd4 {[%emt 0:00:22]} 44. exd4 {[%emt 0:00:01]} Re6 {[%emt 0:00:06]} 45. Rfe1 {[%emt 0:00:06]} Rxe2 {[%emt 0:00:06]} 46. Qxe2 {[%emt 0:00:05]} Qxe2 {[%emt 0:00:13]} 47. Rxe2 {[%emt 0:00:01]} Rc7 {[%emt 0:00:01]} 48. Kf2 {[%emt 0:00:25]} Rc3 {[%emt 0:00:03]} 49. Re7 {[%emt 0:00:39]} Rc2+ {[%emt 0:00:05]} 50. Kf3 {[%emt 0:00:01]} Rxh2 {[%emt 0:00:11]} 51. Rxb7 {[%emt 0:00:24]} Rxa2 {[%emt 0:00:01]} 52. Kg4 {[%emt 0:00:01]} Rd2 {[%emt 0:00:19]} 53. Kg5 {[%emt 0:00:01]} Rxd4 {[%emt 0:00:05]} 54. Kxg6 {[%emt 0:00:02]} Kf8 {[%emt 0:00:01]} 55. Kf6 {[%emt 0:00:15]} Kg8 {[%emt 0:00:15]} 56. f5 {[%emt 0:00:27]} Rg4 {[%emt 0:00:31]} 57. Rxa7 {[%emt 0:00:22]} Rxg3 {[%emt 0:00:01]} 58. Ra8+ {[%emt 0:00:01]} Kh7 {[%emt 0:00:02]} 59. Rb8 {[%emt 0:00:19]} d4 {[%emt 0:00:04]} 60. b4 {[%emt 0:00:06]} Rb3 {[%emt 0:00:29]} 61. Ke7 {[%emt 0:00:06]} d3 {[%emt 0:00:07]} 62. f6 {[%emt 0:00:11]} d2 {[%emt 0:00:00]} 63. Rd8 {[%emt 0:00:02]} Rxb4 {[%emt 0:00:11]} 64. f7 {[%emt 0:00:15]} Re4+ {[%emt 0:00:01]} 65. Kf8 {[%emt 0:00:16]} Re2 {[%emt 0:00:09]} 66. Rd3 {[%emt 0:00:05]} Rf2 {[%emt 0:00:07]} 67. Rh3+ {[%emt 0:00:18]} Kg6 {[%emt 0:00:02]} 68. Rg3+ {[%emt 0:00:01]} Kh7 {[%emt 0:00:07]} 69. Rg1 {[%emt 0:00:21]} Rf3 {[%emt 0:00:55]} 70. Rd1 {[%emt 0:00:16]} 0-1

[Event "FIDE Women World Rapid 2024"]
[Site "New York"]
[Date "2024.12.27"]
[Round "7.13"]
[White "Mou, Iris"]
[Black "Bulmaga, Irina"]
[Result "1/2-1/2"]
[ECO "C44"]
[WhiteElo "2226"]
[BlackElo "2386"]
[Annotator "ChessBase"]
[PlyCount "120"]
[EventDate "2024.12.14"]
[EventType "swiss"]
[EventCountry "USA"]
[SourceTitle "playchess.com"]
[Source "ChessBase"]
[SourceQuality "1"]
[TimeControl "900+10"]

1. e4 {[%emt 0:00:02]} e5 {[%emt 0:00:01]} 2. Nf3 {[%emt 0:00:04]} Nc6 {[%emt 0:00:02]} 3. g3 {[%emt 0:00:03]} Nf6 {[%emt 0:00:14]} 4. d3 {[%emt 0:00:02]} d5 {[%emt 0:00:05]} 5. exd5 {[%emt 0:00:08]} Nxd5 {[%emt 0:00:02]} 6. Bg2 {[%emt 0:00:02]} Bc5 {[%emt 0:00:22]} 7. O-O {[%emt 0:00:13]} O-O {[%emt 0:00:03]} 8. Nbd2 {[%emt 0:02:24]} Re8 {[%emt 0:00:08]} 9. Re1 {[%emt 0:00:41]} Bg4 {[%emt 0:00:25]} 10. h3 {[%emt 0:00:25]} Bh5 {[%emt 0:00:07]} 11. a3 {[%emt 0:00:22]} a5 {[%emt 0:00:04]} 12. Nc4 {[%emt 0:01:24]} f6 {[%emt 0:03:12]} 13. Ne3 {[%emt 0:00:41]} Nde7 {[%emt 0:02:41]} 14. g4 {[%emt 0:02:37]} Bf7 {[%emt 0:00:02]} 15. Nh4 {[%emt 0:00:07]} Ng6 {[%emt 0:01:09]} 16. Nef5 {[%emt 0:01:20]} Nxh4 {[%emt 0:01:41]} 17. Nxh4 {[%emt 0:00:02]} Bd5 {[%emt 0:00:15]} 18. Be3 {[%emt 0:00:47]} Nd4 {[%emt 0:01:25]} 19. Bxd4 {[%emt 0:01:34]} Bxd4 {[%emt 0:00:03]} 20. c3 {[%emt 0:00:08]} Bb6 {[%emt 0:00:47]} 21. Nf5 {[%emt 0:00:21]} c6 {[%emt 0:00:35]} 22. Be4 {[%emt 0:01:07]} Bf7 {[%emt 0:00:51]} 23. Qf3 {[%emt 0:00:23]} Bc5 {[%emt 0:00:29]} 24. b4 {[%emt 0:00:38]} Bf8 {[%emt 0:00:18]} 25. Reb1 {[%emt 0:00:53]} axb4 {[%emt 0:00:27]} 26. axb4 {[%emt 0:00:03]} Qd7 {[%emt 0:00:24]} 27. Kg2 {[%emt 0:01:24]} Bd5 {[%emt 0:00:10]} 28. Rd1 {[%emt 0:00:21]} Bb3 {[%emt 0:00:31]} 29. Rdb1 {[%emt 0:00:08]} Bd5 {[%emt 0:00:28]} 30. Rd1 {[%emt 0:00:02]} Bb3 {[%emt 0:00:58]} 31. Rdb1 {[%emt 0:00:01]} Ba2 {[%emt 0:00:09]} 32. Rb2 {[%emt 0:00:21]} Bd5 {[%emt 0:00:04]} 33. Rbb1 {[%emt 0:00:11]} Bxe4 {[%emt 0:00:51]} 34. dxe4 {[%emt 0:00:14]} Rxa1 {[%emt 0:00:08]} 35. Rxa1 {[%emt 0:00:01]} Rd8 {[%emt 0:00:01]} 36. Ne3 {[%emt 0:00:11]} b5 {[%emt 0:00:15]} 37. Rd1 {[%emt 0:00:28]} Qe8 {[%emt 0:00:08]} 38. Rxd8 {[%emt 0:00:28]} Qxd8 {[%emt 0:00:01]} 39. Qd1 {[%emt 0:00:01]} Qxd1 {[%emt 0:00:17]} 40. Nxd1 {[%emt 0:00:02]} Kf7 {[%emt 0:00:29]} 41. Kf3 {[%emt 0:00:11]} Ke6 {[%emt 0:00:09]} 42. Ne3 {[%emt 0:00:34]} g6 {[%emt 0:00:04]} 43. Ke2 {[%emt 0:00:11]} Bh6 {[%emt 0:00:38]} 44. Ng2 {[%emt 0:00:02]} f5 {[%emt 0:00:07]} 45. f3 {[%emt 0:00:03]} Bc1 {[%emt 0:00:47]} 46. Kd1 {[%emt 0:00:17]} Bg5 {[%emt 0:00:09]} 47. Ke2 {[%emt 0:00:01]} h6 {[%emt 0:00:13]} 48. Kd3 {[%emt 0:00:03]} Be7 {[%emt 0:00:17]} 49. Ne3 {[%emt 0:00:37]} f4 {[%emt 0:00:01]} 50. Ng2 {[%emt 0:00:44]} c5 {[%emt 0:00:01]} 51. bxc5 {[%emt 0:00:09]} Bxc5 {[%emt 0:00:02]} 52. Kc2 {[%emt 0:00:14]} Bf2 {[%emt 0:00:28]} 53. Kb3 {[%emt 0:00:16]} Kd6 {[%emt 0:00:15]} 54. Kb4 {[%emt 0:00:13]} Kc6 {[%emt 0:00:02]} 55. c4 {[%emt 0:00:04]} Bc5+ {[%emt 0:00:11]} 56. Kb3 {[%emt 0:00:01]} Bf2 {[%emt 0:00:17]} 57. Kb4 {[%emt 0:00:06]} bxc4 {[%emt 0:00:21]} 58. Kxc4 {[%emt 0:00:00]} g5 {[%emt 0:00:05]} 59. Kb4 {[%emt 0:00:45]} Kd7 {[%emt 0:00:00]} 60. Kc4 {[%emt 0:00:00]} Kc6 {[%emt 0:00:00]} 1/2-1/2

[Event "FIDE Women World Rapid 2024"]
[Site "New York"]
[Date "2024.12.27"]
[Round "7.13"]
[White "Lesbekova, Assel"]
[Black "Melia, Salome"]
[Result "1-0"]
[ECO "B13"]
[WhiteElo "1952"]
[BlackElo "2293"]
[Annotator "ChessBase"]
[PlyCount "123"]
[EventDate "2024.12.14"]
[EventType "swiss"]
[EventCountry "USA"]
[SourceTitle "playchess.com"]
[Source "ChessBase"]
[SourceQuality "1"]
[TimeControl "900+10"]

1. d4 {[%emt 0:00:01]} Nf6 {[%emt 0:00:01]} 2. Bf4 {[%emt 0:00:02]} c5 {[%emt 0:00:33]} 3. e3 {[%emt 0:01:27]} d5 {[%emt 0:00:22]} 4. c3 {[%emt 0:00:20]} cxd4 {[%emt 0:00:32]} 5. exd4 {[%emt 0:00:12]} a6 {[%emt 0:00:02]} 6. Nd2 {[%emt 0:00:13]} Nc6 {[%emt 0:00:02]} 7. Bd3 {[%emt 0:00:10]} g6 {[%emt 0:00:25]} 8. h3 {[%emt 0:00:22]} Bg7 {[%emt 0:00:57]} 9. Ngf3 {[%emt 0:00:05]} O-O {[%emt 0:00:02]} 10. O-O {[%emt 0:00:05]} Nh5 {[%emt 0:00:23]} 11. Bh2 {[%emt 0:00:12]} Bh6 {[%emt 0:00:22]} 12. Ne5 {[%emt 0:00:28]} Nf4 {[%emt 0:00:21]} 13. Bc2 {[%emt 0:00:39]} Nxe5 {[%emt 0:02:55]} 14. dxe5 {[%emt 0:00:06]} d4 {[%emt 0:01:32]} 15. Bxf4 {[%emt 0:02:25]} Bxf4 {[%emt 0:00:04]} 16. Nf3 {[%emt 0:00:16]} dxc3 {[%emt 0:00:06]} 17. Qxd8 {[%emt 0:00:39]} Rxd8 {[%emt 0:00:01]} 18. bxc3 {[%emt 0:00:02]} Be6 {[%emt 0:00:35]} 19. Be4 {[%emt 0:00:13]} Bd5 {[%emt 0:00:38]} 20. Bxd5 {[%emt 0:00:18]} Rxd5 {[%emt 0:00:01]} 21. Rfd1 {[%emt 0:00:14]} Rad8 {[%emt 0:00:18]} 22. Rd4 {[%emt 0:00:02]} Rxd4 {[%emt 0:02:37]} 23. cxd4 {[%emt 0:00:09]} e6 {[%emt 0:00:01]} 24. g3 {[%emt 0:00:37]} Bh6 {[%emt 0:00:01]} 25. Rb1 {[%emt 0:00:05]} b5 {[%emt 0:00:03]} 26. a4 {[%emt 0:00:30]} Rb8 {[%emt 0:00:28]} 27. axb5 {[%emt 0:00:12]} axb5 {[%emt 0:00:01]} 28. Kf1 {[%emt 0:00:22]} b4 {[%emt 0:00:10]} 29. Rb3 {[%emt 0:00:01]} Bf8 {[%emt 0:00:10]} 30. Ke2 {[%emt 0:00:20]} Ra8 {[%emt 0:00:10]} 31. Rb2 {[%emt 0:00:21]} Ra3 {[%emt 0:01:02]} 32. Nd2 {[%emt 0:00:33]} h6 {[%emt 0:00:38]} 33. Nb3 {[%emt 0:00:42]} g5 {[%emt 0:00:58]} 34. Kd3 {[%emt 0:00:11]} Kg7 {[%emt 0:00:15]} 35. Kc4 {[%emt 0:00:35]} h5 {[%emt 0:00:39]} 36. g4 {[%emt 0:02:30]} h4 {[%emt 0:00:01]} 37. f4 {[%emt 0:00:09]} gxf4 {[%emt 0:00:42]} 38. Rf2 {[%emt 0:00:02]} Be7 {[%emt 0:00:12]} 39. Rxf4 {[%emt 0:00:27]} Ra2 {[%emt 0:00:03]} 40. Rf3 {[%emt 0:01:04]} Rc2+ {[%emt 0:01:06]} 41. Kb5 {[%emt 0:00:21]} Rg2 {[%emt 0:01:41]} 42. Kc4 {[%emt 0:00:47]} Rg3 {[%emt 0:00:41]} 43. Rd3 {[%emt 0:00:02]} Kg6 {[%emt 0:00:14]} 44. Nc5 {[%emt 0:00:27]} Rg2 {[%emt 0:00:12]} 45. Kxb4 {[%emt 0:00:25]} Kg5 {[%emt 0:00:11]} 46. Kc4 {[%emt 0:01:03]} Kf4 {[%emt 0:00:04]} 47. Rd1 {[%emt 0:00:08]} Kg3 {[%emt 0:00:15]} 48. Rd3+ {[%emt 0:00:02]} Kh2 {[%emt 0:00:08]} 49. Rf3 {[%emt 0:00:26]} Bg5 {[%emt 0:00:13]} 50. Rxf7 {[%emt 0:00:07]} Kxh3 {[%emt 0:00:02]} 51. Nxe6 {[%emt 0:00:02]} Bc1 {[%emt 0:00:19]} 52. d5 {[%emt 0:00:23]} Rxg4+ {[%emt 0:00:08]} 53. Kd3 {[%emt 0:00:35]} Bb2 {[%emt 0:00:09]} 54. Nf4+ {[%emt 0:00:50]} Kg3 {[%emt 0:00:10]} 55. Ne2+ {[%emt 0:00:03]} Kg2 {[%emt 0:00:09]} 56. e6 {[%emt 0:00:02]} Ba3 {[%emt 0:00:12]} 57. e7 {[%emt 0:00:11]} Rg8 {[%emt 0:00:04]} 58. Rg7+ {[%emt 0:00:19]} Rxg7 {[%emt 0:00:11]} 59. e8=Q {[%emt 0:00:03]} Rg4 {[%emt 0:00:15]} 60. Qe6 {[%emt 0:00:14]} Rg5 {[%emt 0:00:12]} 61. Qe4+ {[%emt 0:00:08]} Kf1 {[%emt 0:00:08]} 62. Qf4+ {[%emt 0:00:02]} 1-0

[Event "FIDE Women World Rapid 2024"]
[Site "New York"]
[Date "2024.12.27"]
[Round "7.14"]
[White "Muzychuk, Anna"]
[Black "Mammadzada, Gunay"]
[Result "1-0"]
[ECO "C50"]
[WhiteElo "2515"]
[BlackElo "2421"]
[Annotator "ChessBase"]
[PlyCount "67"]
[EventDate "2024.12.14"]
[EventType "swiss"]
[EventCountry "USA"]
[SourceTitle "playchess.com"]
[Source "ChessBase"]
[SourceQuality "1"]
[TimeControl "900+10"]

1. e4 {[%emt 0:00:01]} e5 {[%emt 0:00:01]} 2. Nf3 {[%emt 0:00:01]} Nc6 {[%emt 0:00:01]} 3. Bc4 {[%emt 0:00:02]} Nf6 {[%emt 0:00:03]} 4. d3 {[%emt 0:00:04]} Bc5 {[%emt 0:00:02]} 5. Nc3 {[%emt 0:00:07]} h6 {[%emt 0:00:06]} 6. Be3 {[%emt 0:00:30]} Bxe3 {[%emt 0:00:15]} 7. fxe3 {[%emt 0:00:01]} d6 {[%emt 0:00:03]} 8. a3 {[%emt 0:00:13]} a6 {[%emt 0:00:38]} 9. h3 {[%emt 0:00:52]} Ne7 {[%emt 0:01:02]} 10. d4 {[%emt 0:00:43]} exd4 {[%emt 0:03:46]} 11. exd4 {[%emt 0:00:01]} d5 {[%emt 0:00:43]} 12. exd5 {[%emt 0:01:54]} Nexd5 {[%emt 0:00:37]} 13. Nxd5 {[%emt 0:00:15]} Nxd5 {[%emt 0:00:02]} 14. O-O {[%emt 0:00:40]} Be6 {[%emt 0:00:25]} 15. Qd2 {[%emt 0:00:15]} O-O {[%emt 0:01:08]} 16. Bd3 {[%emt 0:00:14]} c6 {[%emt 0:02:41]} 17. Rae1 {[%emt 0:00:53]} Ne7 {[%emt 0:00:04]} 18. Qf4 {[%emt 0:00:43]} Ng6 {[%emt 0:00:42]} 19. Bxg6 {[%emt 0:01:54]} fxg6 {[%emt 0:00:02]} 20. Qe3 {[%emt 0:00:02]} Bf5 {[%emt 0:01:38]} 21. Qb3+ {[%emt 0:01:26]} Kh7 {[%emt 0:00:42]} 22. Qxb7 {[%emt 0:01:13]} Rb8 {[%emt 0:00:23]} 23. Qxc6 {[%emt 0:00:12]} Rxb2 {[%emt 0:00:02]} 24. Rf2 {[%emt 0:00:16]} Qa5 {[%emt 0:00:33]} 25. Qc5 {[%emt 0:00:49]} Qxc5 {[%emt 0:00:45]} 26. dxc5 {[%emt 0:00:01]} Rxc2 {[%emt 0:00:37]} 27. Rxc2 {[%emt 0:00:24]} Bxc2 {[%emt 0:00:02]} 28. Nd4 {[%emt 0:01:34]} Ba4 {[%emt 0:00:26]} 29. Re7 {[%emt 0:00:26]} Rb8 {[%emt 0:01:19]} 30. c6 {[%emt 0:00:31]} Rb1+ {[%emt 0:00:11]} 31. Kh2 {[%emt 0:00:01]} Rc1 {[%emt 0:00:26]} 32. c7 {[%emt 0:00:03]} g5 {[%emt 0:00:10]} 33. Nf5 {[%emt 0:00:15]} Kg6 {[%emt 0:00:05]} 34. Nd6 {[%emt 0:00:01]} 1-0

[Event "FIDE Women World Rapid 2024"]
[Site "New York"]
[Date "2024.12.27"]
[Round "7.14"]
[White "Krasteva, Beloslava"]
[Black "Jarocka, Liwia"]
[Result "0-1"]
[ECO "D02"]
[WhiteElo "2281"]
[BlackElo "2261"]
[Annotator "ChessBase"]
[PlyCount "110"]
[EventDate "2024.12.14"]
[EventType "swiss"]
[EventCountry "USA"]
[SourceTitle "playchess.com"]
[Source "ChessBase"]
[SourceQuality "1"]
[TimeControl "900+10"]

1. d4 {[%emt 0:00:02]} d5 {[%emt 0:00:01]} 2. Nf3 {[%emt 0:00:16]} Nf6 {[%emt 0:00:02]} 3. Bf4 {[%emt 0:00:02]} c5 {[%emt 0:00:20]} 4. e3 {[%emt 0:00:02]} Nc6 {[%emt 0:00:05]} 5. Nbd2 {[%emt 0:00:03]} Bg4 {[%emt 0:01:06]} 6. c3 {[%emt 0:00:19]} e6 {[%emt 0:00:39]} 7. Bb5 {[%emt 0:00:04]} Bd6 {[%emt 0:00:19]} 8. Qa4 {[%emt 0:00:35]} O-O {[%emt 0:01:41]} 9. Bxc6 {[%emt 0:00:39]} bxc6 {[%emt 0:00:17]} 10. dxc5 {[%emt 0:03:26]} Bxc5 {[%emt 0:01:00]} 11. Qxc6 {[%emt 0:00:04]} Rc8 {[%emt 0:00:18]} 12. Qa6 {[%emt 0:01:02]} Bb6 {[%emt 0:00:27]} 13. O-O {[%emt 0:00:17]} Nd7 {[%emt 0:00:02]} 14. Ne5 {[%emt 0:02:36]} Nc5 {[%emt 0:00:07]} 15. Qa3 {[%emt 0:00:26]} Bf5 {[%emt 0:00:10]} 16. Rfd1 {[%emt 0:03:21]} f6 {[%emt 0:00:06]} 17. Nef3 {[%emt 0:00:04]} e5 {[%emt 0:02:04]} 18. Bg3 {[%emt 0:00:02]} Bc2 {[%emt 0:00:12]} 19. Rdc1 {[%emt 0:00:05]} Bg6 {[%emt 0:00:02]} 20. Nh4 {[%emt 0:01:05]} Bf7 {[%emt 0:01:24]} 21. Rd1 {[%emt 0:00:31]} Qe8 {[%emt 0:00:23]} 22. Nb3 {[%emt 0:00:53]} g6 {[%emt 0:03:33]} 23. Nxc5 {[%emt 0:00:56]} Rxc5 {[%emt 0:00:12]} 24. Nf3 {[%emt 0:00:18]} Ra5 {[%emt 0:00:05]} 25. Qd6 {[%emt 0:00:35]} Be6 {[%emt 0:01:05]} 26. b4 {[%emt 0:00:06]} Ra3 {[%emt 0:00:23]} 27. Rdc1 {[%emt 0:00:58]} Qc8 {[%emt 0:00:47]} 28. Nd2 {[%emt 0:00:47]} Kf7 {[%emt 0:00:31]} 29. b5 {[%emt 0:00:10]} Rxc3 {[%emt 0:00:19]} 30. Nb3 {[%emt 0:00:10]} Rc4 {[%emt 0:00:44]} 31. Qa3 {[%emt 0:00:07]} Qd7 {[%emt 0:00:12]} 32. Nd2 {[%emt 0:00:16]} Rxc1+ {[%emt 0:00:26]} 33. Qxc1 {[%emt 0:00:06]} Qxb5 {[%emt 0:00:07]} 34. a4 {[%emt 0:00:01]} Qc5 {[%emt 0:00:07]} 35. Qb2 {[%emt 0:00:08]} Rc8 {[%emt 0:00:06]} 36. h4 {[%emt 0:00:13]} Qc2 {[%emt 0:00:12]} 37. Rb1 {[%emt 0:00:15]} Qxb2 {[%emt 0:00:19]} 38. Rxb2 {[%emt 0:00:01]} Rc1+ {[%emt 0:00:01]} 39. Kh2 {[%emt 0:00:01]} Ra1 {[%emt 0:00:03]} 40. Rb4 {[%emt 0:00:29]} Bd7 {[%emt 0:00:05]} 41. e4 {[%emt 0:00:15]} Rxa4 {[%emt 0:00:13]} 42. Rxa4 {[%emt 0:00:04]} Bxa4 {[%emt 0:00:00]} 43. exd5 {[%emt 0:00:02]} Bd7 {[%emt 0:00:50]} 44. Nc4 {[%emt 0:00:12]} Bc5 {[%emt 0:00:12]} 45. f3 {[%emt 0:00:14]} Bb5 {[%emt 0:00:04]} 46. Na5 {[%emt 0:00:05]} Bb4 {[%emt 0:00:32]} 47. Nb7 {[%emt 0:00:12]} a5 {[%emt 0:00:12]} 48. f4 {[%emt 0:00:17]} e4 {[%emt 0:00:35]} 49. f5 {[%emt 0:00:03]} e3 {[%emt 0:00:06]} 50. fxg6+ {[%emt 0:00:18]} hxg6 {[%emt 0:00:01]} 51. Nd6+ {[%emt 0:00:07]} Bxd6 {[%emt 0:00:10]} 52. Bxd6 {[%emt 0:00:01]} e2 {[%emt 0:00:07]} 53. Bg3 {[%emt 0:00:23]} a4 {[%emt 0:00:00]} 54. Kg1 {[%emt 0:00:12]} a3 {[%emt 0:00:03]} 55. Kf2 {[%emt 0:00:09]} a2 {[%emt 0:00:02]} 0-1